fUST/lending_fUST_20251129
["ID","MTS","AMOUNT","RATE_DAILY","PERIOD"]
[395070487,1764397886157,-500.0,0.00018904,2]
[395070488,1764397886166,-540.78,0.00018904,2]
[395070489,1764397886174,-689.25,0.00018904,2]
[395070490,1764397886183,-151.0,0.00018904,2]
[395070491,1764397886192,-848.59,0.00018904,2]
[395070492,1764397886200,-1164.8,0.00018904,2]
[395070493,1764397886209,-1236.56,0.00018904,2]
[395070494,1764397886218,-3090.35,0.00018904,2]
[395070495,1764397886227,-529.77,0.00018904,2]
[395070496,1764397886242,-5933.31,0.00018904,2]
[395070497,1764397886251,-1214.71,0.00018904,2]
[395070498,1764397886259,-652.25,0.00018904,2]
[395070499,1764397886268,-1897.31,0.00018904,2]
[395070500,1764397886278,-990.53,0.00018904,2]
[395070501,1764397886287,-778.35,0.00018904,2]
[395070502,1764397886298,-1618.79,0.00018904,2]
[395070503,1764397886308,-592.68,0.00018904,2]
[395070504,1764397886318,-899.31,0.00018904,2]
[395070505,1764397886327,-940.19,0.00018904,2]
[395070506,1764397886336,-272.37311091,0.00018904,2]
[395070507,1764397886344,-1484.2,0.00018904,2]
[395070508,1764397886353,-596.04,0.00018904,2]
[395070509,1764397886362,-2800.32,0.00018904,2]
[395070510,1764397886373,-500.0,0.00018904,2]
[395070511,1764397886382,-552.21,0.00018904,2]
[395070512,1764397886391,-1559.52,0.00018904,2]
[395070513,1764397886400,-522.61,0.00018904,2]
[395070514,1764397886410,-797.75,0.00018904,2]
[395070515,1764397886419,-513.48,0.00018904,2]
[395070516,1764397886428,-526.07,0.00018904,2]
[395070517,1764397886437,-1335.25,0.00018904,2]
[395070518,1764397886446,-1099.74,0.00018904,2]
[395070519,1764397886455,-3619.92,0.00018904,2]
[395070520,1764397886464,-2405.03,0.00018904,2]
[395070521,1764397886474,-7651.96,0.00018904,2]
[395070522,1764397886484,-649.66,0.00018904,2]
[395070523,1764397886493,-1908.06,0.00018904,2]
[395070524,1764397886502,-662.97,0.00018904,2]
[395070525,1764397886512,-1158.74,0.00018904,2]
[395070526,1764397886521,-1514.35,0.00018904,2]
[395070527,1764397886531,-642.19,0.00018904,2]
[395070528,1764397886541,-3678.73,0.00018904,2]
[395070529,1764397886550,-6008.98,0.00018904,2]
[395070530,1764397886559,-514.33,0.00018904,2]
[395070531,1764397886569,-776.58,0.00018904,2]
[395070532,1764397886578,-500.0,0.00018904,2]
[395070533,1764397886587,-3777.58,0.00018904,2]
[395070534,1764397886596,-980.94,0.00018904,2]
[395070535,1764397886606,-907.07,0.00018904,2]
[395070536,1764397886615,-1083.76,0.00018904,2]
[395070537,1764397886625,-604.62,0.00018904,2]
[395070538,1764397886634,-1104.96,0.00018904,2]
[395070539,1764397886644,-6559.69,0.00018904,2]
[395070540,1764397886653,-939.05,0.00018904,2]
[395070541,1764397886663,-1377.4,0.00018904,2]
[395070542,1764397886673,-4642.22,0.00018904,2]
[395070543,1764397886682,-600.0,0.00018922,2]
[395070544,1764397886692,-960.0,0.00018936,2]
[395070545,1764397886702,-153.0,0.00018998,2]
[395070546,1764397886713,-1000.0,0.00019,2]
[395070547,1764397886722,-120000.0,0.00019,2]
[395070548,1764397886732,-149537.72051015,0.00019,2]
[395070549,1764397886741,-224.05055555,0.00019018,2]
[395070550,1764397886752,-302.96956393,0.00019089,2]
[395070551,1764397886761,-368.72313193,0.00019093,21]
[395070552,1764397886770,-3300.0,0.00019152,2]
[395070553,1764397886779,-1272.36171002,0.00019178,3]
[395070554,1764397886788,-150.0,0.00019178,2]
[395070555,1764397886797,-300.0,0.00019178,2]
[395070556,1764397886806,-450.0,0.00019178,2]
[395070557,1764397886816,-600.0,0.00019178,2]
[395070558,1764397886825,-672.79208311,0.00019178,2]
[395070559,1764397886839,-766.13,0.00019178,2]
[395070560,1764397886854,-556.64,0.00019178,2]
[395070561,1764397886863,-834.94,0.00019178,2]
[395070562,1764397886873,-823.76,0.00019178,2]
[395070563,1764397886882,-598.61,0.00019178,2]
[395070564,1764397886891,-158.910917,0.00019178,3]
[395070565,1764397886901,-903.4,0.00019178,2]
[395070566,1764397886910,-745.8,0.00019178,2]
[395070567,1764397886920,-500.0,0.00019178,2]
[395070568,1764397886930,-637.36115252,0.00019178,2]
[395070569,1764397886939,-587.4,0.00019178,2]
[395070570,1764397886948,-738.75,0.00019178,2]
[395070571,1764397886957,-596.16,0.00019178,2]
[395070572,1764397886967,-574.22,0.00019178,2]
[395070573,1764397886976,-581.68,0.00019178,2]
[395070574,1764397886985,-556.95,0.00019178,2]
[395070575,1764397886994,-564.08,0.00019178,2]
[395070576,1764397887003,-500.0,0.00019178,2]
[395070577,1764397887012,-540.78,0.00019178,2]
[395070578,1764397887021,-689.25,0.00019178,2]
[395070579,1764397887030,-151.0,0.00019178,2]
[395070580,1764397887039,-848.59,0.00019178,2]
[395070581,1764397887047,-1164.8,0.00019178,2]
[395070582,1764397887057,-1236.56,0.00019178,2]
[395070583,1764397887066,-3090.35,0.00019178,2]
[395070584,1764397887075,-529.77,0.00019178,2]
[395070585,1764397887084,-5933.31,0.00019178,2]
[395070586,1764397887093,-1214.71,0.00019178,2]
[395070587,1764397887103,-652.25,0.00019178,2]
[395070588,1764397887112,-1897.31,0.00019178,2]
[395070589,1764397887122,-990.53,0.00019178,2]
[395070590,1764397887131,-778.35,0.00019178,2]
[395070591,1764397887141,-1618.79,0.00019178,2]
[395070592,1764397887149,-592.68,0.00019178,2]
[395070593,1764397887159,-899.31,0.00019178,2]
[395070594,1764397887168,-940.19,0.00019178,2]
[395070595,1764397887177,-1484.2,0.00019178,2]
[395070596,1764397887186,-596.04,0.00019178,2]
[395070597,1764397887195,-2800.32,0.00019178,2]
[395070598,1764397887204,-613.79660134,0.00019178,2]
[395070599,1764397887214,-552.21,0.00019178,2]
[395070600,1764397887223,-1559.52,0.00019178,2]
[395070601,1764397887237,-522.61,0.00019178,2]
[395070602,1764397887253,-797.75,0.00019178,2]
[395070603,1764397887263,-513.48,0.00019178,2]
[395070604,1764397887273,-526.07,0.00019178,2]
[395070605,1764397887284,-1335.25,0.00019178,2]
[395070606,1764397887293,-1099.74,0.00019178,2]
[395070607,1764397887302,-3619.92,0.00019178,2]
[395070608,1764397887313,-2405.03,0.00019178,2]
[395070609,1764397887322,-7651.96,0.00019178,2]
[395070610,1764397887332,-649.66,0.00019178,2]
[395070611,1764397887341,-1908.06,0.00019178,2]
[395070612,1764397887350,-662.97,0.00019178,2]
[395070613,1764397887359,-1158.74,0.00019178,2]
[395070614,1764397887368,-191.27959339,0.00019178,3]
[395070615,1764397887377,-1514.35,0.00019178,2]
[395070616,1764397887386,-642.19,0.00019178,2]
[395070617,1764397887397,-3678.73,0.00019178,2]
[395070618,1764397887405,-6008.98,0.00019178,2]
[395070619,1764397887414,-514.33,0.00019178,2]
[395070620,1764397887423,-776.58,0.00019178,2]
[395070621,1764397887433,-500.0,0.00019178,2]
[395070622,1764397887442,-3777.58,0.00019178,2]
[395070623,1764397887451,-980.94,0.00019178,2]
[395070624,1764397887460,-907.07,0.00019178,2]
[395070625,1764397887469,-1083.76,0.00019178,2]
[395070626,1764397887478,-604.62,0.00019178,2]
[395070627,1764397887487,-1104.96,0.00019178,2]
[395070628,1764397887496,-6559.69,0.00019178,2]
[395070629,1764397887505,-939.05,0.00019178,2]
[395070630,1764397887514,-1377.4,0.00019178,2]
[395070631,1764397887523,-4642.22,0.00019178,2]
[395070632,1764397887533,-151.0,0.00019178,2]
[395070633,1764397887542,-5000.0,0.00019178,2]
[395070634,1764397887551,-5000.0,0.00019178,2]
[395070635,1764397887560,-5000.0,0.00019178,2]
[395070636,1764397887569,-5000.0,0.00019178,2]
[395070637,1764397887579,-5000.0,0.00019178,2]
[395070638,1764397887588,-5000.0,0.00019178,2]
[395070639,1764397887597,-2000.00576355,0.00019178,2]
[395070640,1764397887607,-151.0,0.00019178,2]
[395070641,1764397887616,-151.0,0.00019178,2]
[395070642,1764397887625,-151.0,0.00019178,2]
[395070643,1764397887635,-151.0,0.00019178,2]
[395070644,1764397887644,-151.0,0.00019178,2]
[395070645,1764397887654,-5500.0,0.00019178,2]
[395070646,1764397887663,-155.245964,0.000192,10]
[395070647,1764397887677,-155.245964,0.000192,7]
[395070648,1764397887686,-267.30546178,0.00019233,2]
[395070649,1764397887696,-301.1433787,0.00019316,2]
[395070650,1764397887705,-666.0,0.00019316,2]
[395070651,1764397887715,-2000.0,0.000194,2]
[395070652,1764397887862,-1279.8,0.000194,2]
[395070653,1764397887888,-500.0,0.00019452,2]
[395070654,1764397887897,-766.13,0.00019452,2]
[395070655,1764397887907,-556.64,0.00019452,2]
[395070656,1764397887916,-834.94,0.00019452,2]
[395070657,1764397887925,-823.76,0.00019452,2]
[395070658,1764397887934,-598.61,0.00019452,2]
[395070659,1764397887943,-903.4,0.00019452,2]
[395070660,1764397887952,-745.8,0.00019452,2]
[395070661,1764397887961,-500.0,0.00019452,2]
[395070662,1764397887970,-587.4,0.00019452,2]
[395070663,1764397887981,-738.75,0.00019452,2]
[395070664,1764397887990,-596.16,0.00019452,2]
[395070665,1764397887999,-574.22,0.00019452,2]
[395070666,1764397888008,-581.68,0.00019452,2]
[395070667,1764397888027,-556.95,0.00019452,2]
[395070668,1764397888038,-564.08,0.00019452,2]
[395070669,1764397888048,-500.0,0.00019452,2]
[395070670,1764397888058,-540.78,0.00019452,2]
[395070671,1764397888068,-689.25,0.00019452,2]
[395070672,1764397888086,-151.0,0.00019452,2]
[395070673,1764397888096,-848.59,0.00019452,2]
[395070674,1764397888106,-1164.8,0.00019452,2]
[395070675,1764397888115,-1236.56,0.00019452,2]
[395070676,1764397888126,-3090.35,0.00019452,2]
[395070677,1764397888135,-529.77,0.00019452,2]
[395070678,1764397888145,-5933.31,0.00019452,2]
[395070679,1764397888154,-1214.71,0.00019452,2]
[395070680,1764397888164,-652.25,0.00019452,2]
[395070681,1764397888174,-1897.31,0.00019452,2]
[395070682,1764397888184,-990.53,0.00019452,2]
[395070683,1764397888193,-778.35,0.00019452,2]
[395070684,1764397888203,-1618.79,0.00019452,2]
[395070685,1764397888213,-592.68,0.00019452,2]
[395070686,1764397888223,-899.31,0.00019452,2]
[395070687,1764397888236,-940.19,0.00019452,2]
[395070688,1764397888246,-1484.2,0.00019452,2]
[395070689,1764397888255,-596.04,0.00019452,2]
[395070690,1764397888265,-2800.32,0.00019452,2]
[395070691,1764397888275,-552.21,0.00019452,2]
[395070692,1764397888284,-1559.52,0.00019452,2]
[395070693,1764397888294,-522.61,0.00019452,2]
[395070694,1764397888303,-797.75,0.00019452,2]
[395070695,1764397888313,-513.48,0.00019452,2]
[395070696,1764397888322,-526.07,0.00019452,2]
[395070697,1764397888332,-1335.25,0.00019452,2]
[395070698,1764397888342,-1099.74,0.00019452,2]
[395070699,1764397888351,-3619.92,0.00019452,2]
[395070700,1764397888361,-2405.03,0.00019452,2]
[395070701,1764397888371,-7651.96,0.00019452,2]
[395070702,1764397888380,-649.66,0.00019452,2]
[395070703,1764397888389,-1908.06,0.00019452,2]
[395070704,1764397888399,-662.97,0.00019452,2]
[395070705,1764397888408,-1158.74,0.00019452,2]
[395070706,1764397888418,-1514.35,0.00019452,2]
[395070707,1764397888427,-642.19,0.00019452,2]
[395070708,1764397888436,-3678.73,0.00019452,2]
[395070709,1764397888446,-6008.98,0.00019452,2]
[395070710,1764397888456,-514.33,0.00019452,2]
[395070711,1764397888466,-776.58,0.00019452,2]
[395070712,1764397888475,-500.0,0.00019452,2]
[395070713,1764397888485,-3777.58,0.00019452,2]
[395070714,1764397888495,-980.94,0.00019452,2]
[395070715,1764397888504,-907.07,0.00019452,2]
[395070716,1764397888514,-1083.76,0.00019452,2]
[395070717,1764397888523,-604.62,0.00019452,2]
[395070718,1764397888533,-1104.96,0.00019452,2]
[395070719,1764397888544,-6559.69,0.00019452,2]
[395070720,1764397888554,-939.05,0.00019452,2]
[395070721,1764397888563,-1377.4,0.00019452,2]
[395070722,1764397888572,-4642.22,0.00019452,2]
[395070723,1764397888582,-800.0,0.00019455,2]
[395070724,1764397888591,-500.0,0.00019457,2]
[395070725,1764397888601,-414.0,0.00019471,2]
[395070726,1764397888610,-800.0,0.00019478,2]
[395070727,1764397888620,-1060.0,0.00019484,2]
[395070728,1764397888629,-500.0,0.00019496,2]
[395070729,1764397888639,-368.72313193,0.00019502,22]
[395070730,1764397888650,-800.0,0.0001953,2]
[395070731,1764397888659,-150.0,0.00019535,7]
[395070732,1764397888669,-800.0,0.00019545,2]
[395070733,1764397888679,-800.0,0.00019553,2]
[395070734,1764397888689,-800.0,0.00019556,2]
[395070735,1764397888699,-800.0,0.00019597,2]
[395070736,1764397888709,-150.0,0.0001961,2]
[395070737,1764397888719,-800.0,0.00019628,2]
[395070738,1764397888729,-800.0,0.00019649,2]
[395070739,1764397888738,-800.0,0.00019652,2]
[395070740,1764397888749,-600.0,0.00019664,2]
[395070741,1764397888758,-1802.18310963,0.000197,2]
[395070742,1764397888768,-800.0,0.00019724,2]
[395070743,1764397888777,-500.0,0.00019726,2]
[395070744,1764397888786,-766.13,0.00019726,2]
[395070745,1764397888795,-556.64,0.00019726,2]
[395070746,1764397888804,-834.94,0.00019726,2]
[395070747,1764397888813,-823.76,0.00019726,2]
[395070748,1764397888823,-598.61,0.00019726,2]
[395070749,1764397888832,-903.4,0.00019726,2]
[395070750,1764397888841,-745.8,0.00019726,2]
[395070751,1764397888851,-500.0,0.00019726,2]
[395070752,1764397888860,-587.4,0.00019726,2]
[395070753,1764397888869,-738.75,0.00019726,2]
[395070754,1764397888878,-596.16,0.00019726,2]
[395070755,1764397888888,-574.22,0.00019726,2]
[395070756,1764397888898,-581.68,0.00019726,2]
[395070757,1764397888907,-556.95,0.00019726,2]
[395070758,1764397888917,-564.08,0.00019726,2]
[395070759,1764397888926,-500.0,0.00019726,2]
[395070760,1764397888936,-540.78,0.00019726,2]
[395070761,1764397888946,-689.25,0.00019726,2]
[395070762,1764397888955,-848.59,0.00019726,2]
[395070763,1764397888964,-1164.8,0.00019726,2]
[395070764,1764397888973,-1236.56,0.00019726,2]
[395070765,1764397888983,-3090.35,0.00019726,2]
[395070766,1764397888992,-529.77,0.00019726,2]
[395070767,1764397889002,-5933.31,0.00019726,2]
[395070768,1764397889011,-1214.71,0.00019726,2]
[395070769,1764397889020,-652.25,0.00019726,2]
[395070770,1764397889029,-1897.31,0.00019726,2]
[395070771,1764397889038,-990.53,0.00019726,2]
[395070772,1764397889049,-778.35,0.00019726,2]
[395070773,1764397889058,-1618.79,0.00019726,2]
[395070774,1764397889067,-592.68,0.00019726,2]
[395070775,1764397889077,-899.31,0.00019726,2]
[395070776,1764397889085,-940.19,0.00019726,2]
[395070777,1764397889095,-1484.2,0.00019726,2]
[395070778,1764397889105,-596.04,0.00019726,2]
[395070779,1764397889115,-2800.32,0.00019726,2]
[395070780,1764397889125,-552.21,0.00019726,2]
[395070781,1764397889134,-1559.52,0.00019726,2]
[395070782,1764397889145,-522.61,0.00019726,2]
[395070783,1764397889153,-797.75,0.00019726,2]
[395070784,1764397889162,-513.48,0.00019726,2]
[395070785,1764397889171,-526.07,0.00019726,2]
[395070786,1764397889181,-1335.25,0.00019726,2]
[395070787,1764397889190,-1099.74,0.00019726,2]
[395070788,1764397889199,-3619.92,0.00019726,2]
[395070789,1764397889208,-2405.03,0.00019726,2]
[395070790,1764397889219,-7651.96,0.00019726,2]
[395070791,1764397889228,-649.66,0.00019726,2]
[395070792,1764397889242,-1908.06,0.00019726,2]
[395070793,1764397889252,-662.97,0.00019726,2]
[395070794,1764397889261,-1158.74,0.00019726,2]
[395070795,1764397889271,-1514.35,0.00019726,2]
[395070796,1764397889281,-642.19,0.00019726,2]
[395070797,1764397889290,-3678.73,0.00019726,2]
[395070798,1764397889300,-6008.98,0.00019726,2]
[395070799,1764397889310,-776.58,0.00019726,2]
[395070800,1764397889320,-514.33,0.00019726,2]
[395070801,1764397889329,-500.0,0.00019726,2]
[395070802,1764397889339,-3777.58,0.00019726,2]
[395070803,1764397889348,-980.94,0.00019726,2]
[395070804,1764397889357,-907.07,0.00019726,2]
[395070805,1764397889367,-1083.76,0.00019726,2]
[395070806,1764397889376,-604.62,0.00019726,2]
[395070807,1764397889385,-1104.96,0.00019726,2]
[395070808,1764397889394,-6559.69,0.00019726,2]
[395070809,1764397889404,-939.05,0.00019726,2]
[395070810,1764397889413,-1377.4,0.00019726,2]
[395070811,1764397889422,-4642.22,0.00019726,2]
[395070812,1764397889432,-6000.0,0.00019726,2]
[395070813,1764397889441,-318.99293034,0.00019734,2]
[395070814,1764397889451,-800.0,0.00019737,2]
[395070815,1764397889460,-800.0,0.000198,2]
[395070816,1764397889469,-1694.33174201,0.000198,2]
[395070817,1764397889478,-584.09108966,0.00019809,7]
[395070818,1764397889487,-800.0,0.00019817,2]
[395070819,1764397889497,-800.0,0.00019818,2]
[395070820,1764397889506,-368.72313193,0.00019912,24]
[395070821,1764397889516,-800.0,0.00019926,2]
[395070822,1764397889527,-4704.51234802,0.00019962,2]
[395070823,1764397889536,-800.0,0.00019965,2]
[395070824,1764397889545,-5000.0,0.00019973,2]
[395070825,1764397889554,-601.48917251,0.0001999,2]
[395070826,1764397889564,-150.0,0.0002,2]
[395070827,1764397889573,-837.0,0.0002,2]
[395070828,1764397889582,-150.0,0.0002,3]
[395070829,1764397889591,-852.0,0.0002,2]
[395070830,1764397889601,-186.31,0.0002,5]
[395070831,1764397889610,-204.37560548,0.0002,2]
[395070832,1764397889619,-157.3883044,0.0002,4]
[395070833,1764397889629,-8000.0,0.0002,2]
[395070834,1764397889639,-500.0,0.0002,2]
[395070835,1764397889648,-116501.4141542,0.0002,7]
[395070836,1764397889658,-150.0,0.0002,2]
[395070837,1764397889667,-150.0,0.0002,2]
[395070838,1764397889676,-150.0,0.0002,2]
[395070839,1764397889686,-967.0,0.0002,2]
[395070840,1764397889697,-766.28099677,0.0002,2]
[395070841,1764397889705,-556.80558274,0.0002,2]
[395070842,1764397889715,-835.00962562,0.0002,2]
[395070843,1764397889724,-823.82509431,0.0002,2]
[395070844,1764397889733,-598.72001102,0.0002,2]
[395070845,1764397889742,-903.43621544,0.0002,2]
[395070846,1764397889751,-746.03990783,0.0002,2]
[395070847,1764397889760,-398.05161669,0.0002,2]
[395070848,1764397889770,-587.6368812,0.0002,2]
[395070849,1764397889779,-738.93036282,0.0002,2]
[395070850,1764397889788,-596.36080817,0.0002,2]
[395070851,1764397889797,-574.30331607,0.0002,2]
[395070852,1764397889806,-581.68914328,0.0002,2]
[395070853,1764397889815,-557.16911844,0.0002,2]
[395070854,1764397889825,-564.26752502,0.0002,2]
[395070855,1764397889834,-348.3983365,0.0002,2]
[395070856,1764397889843,-540.8627544,0.0002,2]
[395070857,1764397889852,-689.39120288,0.0002,2]
[395070858,1764397889862,-848.64400941,0.0002,2]
[395070859,1764397889871,-1164.80582039,0.0002,2]
[395070860,1764397889881,-1236.60896184,0.0002,2]
[395070861,1764397889890,-209.26946096,0.0002,2]
[395070862,1764397889899,-3090.40079235,0.0002,2]
[395070863,1764397889908,-150.0,0.0002,2]
[395070864,1764397889918,-529.96710286,0.0002,2]
[395070865,1764397889928,-5933.37639042,0.0002,2]
[395070866,1764397889939,-1214.85938901,0.0002,2]
[395070867,1764397889950,-652.44797286,0.0002,2]
[395070868,1764397889959,-1897.51459749,0.0002,2]
[395070869,1764397889968,-990.68275139,0.0002,2]
[395070870,1764397889978,-778.53329309,0.0002,2]
[395070871,1764397889987,-1618.83095323,0.0002,2]
[395070872,1764397889996,-592.81052145,0.0002,2]
[395070873,1764397890006,-899.53373719,0.0002,2]
[395070874,1764397890015,-940.33440242,0.0002,2]
[395070875,1764397890025,-1484.30148036,0.0002,2]
[395070876,1764397890034,-596.19641599,0.0002,2]
[395070877,1764397890043,-2800.4909602,0.0002,2]
[395070878,1764397890053,-11688.81667209,0.0002,2]
[395070879,1764397890065,-14632.5653612,0.0002,2]
[395070880,1764397890075,-552.27,0.0002,2]
[395070881,1764397890084,-23000.0,0.0002,2]
[395070882,1764397890093,-1559.59638181,0.0002,2]
[395070883,1764397890103,-20473.504462,0.0002,2]
[395070884,1764397890112,-522.84477591,0.0002,2]
[395070885,1764397890121,-797.921187,0.0002,2]
[395070886,1764397890130,-513.66729362,0.0002,2]
[395070887,1764397890142,-526.09177236,0.0002,2]
[395070888,1764397890152,-1335.45371579,0.0002,2]
[395070889,1764397890161,-1099.86512662,0.0002,2]
[395070890,1764397890170,-3620.15461972,0.0002,2]
[395070891,1764397890180,-2405.20325015,0.0002,2]
[395070892,1764397890189,-7651.96267394,0.0002,2]
[395070893,1764397890199,-649.86193132,0.0002,2]
[395070894,1764397890208,-1908.0717847,0.0002,2]
[395070895,1764397890217,-662.99946292,0.0002,2]
[395070896,1764397890226,-1158.75856669,0.0002,2]
[395070897,1764397890240,-1514.42723127,0.0002,2]
[395070898,1764397890248,-642.28792581,0.0002,2]
[395070899,1764397890257,-3678.89136041,0.0002,2]
[395070900,1764397890267,-6009.18564583,0.0002,2]
[395070901,1764397890277,-776.76135177,0.0002,2]
[395070902,1764397890286,-514.38081823,0.0002,2]
[395070903,1764397890295,-750.2737358,0.0002,2]
[395070904,1764397890304,-308.90156198,0.0002,2]
[395070905,1764397890314,-3777.74985711,0.0002,2]
[395070906,1764397890323,-980.96643153,0.0002,2]
[395070907,1764397890332,-907.08361293,0.0002,2]
[395070908,1764397890341,-1083.88971069,0.0002,2]
[395070909,1764397890350,-604.78440641,0.0002,2]
[395070910,1764397890359,-353.63036686,0.0002,7]
[395070911,1764397890368,-1105.07356238,0.0002,2]
[395070912,1764397890376,-6559.79223221,0.0002,2]
[395070913,1764397890385,-939.1674323,0.0002,2]
[395070914,1764397890395,-1377.63962303,0.0002,2]
[395070915,1764397890403,-4642.35404817,0.0002,2]
[395070916,1764397890413,-2000.0,0.0002,7]
[395070917,1764397890422,-1160.0,0.00020032,2]
[395070918,1764397890431,-18119.31501994,0.00020071,2]
[395070919,1764397890440,-1319.381634,0.00020187,2]
[395070920,1764397890450,-500.0,0.00020192,2]
[395070921,1764397890460,-500.0,0.00020273,2]
[395070922,1764397890470,-6500.0,0.00020274,2]
[395070923,1764397890478,-737.34626387,0.00020321,25]
[395070924,1764397890488,-150.0,0.00020364,2]
[395070925,1764397890497,-258.0,0.00020365,2]
[395070926,1764397890506,-2000.0,0.000204,2]
[395070927,1764397890515,-500.0,0.000204,2]
[395070928,1764397890524,-500.0,0.00020547,2]
[395070929,1764397890533,-3982.703284,0.00020548,2]
[395070930,1764397890542,-1260.0,0.0002058,2]
[395070931,1764397890551,-353.63036686,0.000206,7]
[395070932,1764397890560,-1382.58645428,0.0002061,2]
[395070933,1764397890569,-500.0,0.00020821,2]
[395070934,1764397890579,-4141.32267866,0.00020822,2]
[395070935,1764397890588,-5000.0,0.00020902,2]
[395070936,1764397890597,-1983.62350411,0.00021,2]
[395070937,1764397890606,-841.29,0.00021,2]
[395070938,1764397890615,-5706.24097666,0.00021,5]
[395070939,1764397890624,-3000.0,0.00021,2]
[395070940,1764397890633,-150.0,0.00021,2]
[395070941,1764397890642,-50000.0,0.00021,2]
[395070942,1764397890652,-3000.0,0.0002101,2]
[395070943,1764397890661,-3000.0,0.0002102,2]
[395070944,1764397890670,-3507.470694,0.0002103,2]
[395070945,1764397890680,-500.0,0.00021095,2]
[395070946,1764397890691,-500.0,0.00021099,2]
[395070947,1764397890700,-150.0,0.00021118,2]
[395070948,1764397890709,-1360.0,0.00021128,2]
[395070949,1764397890718,-353.63036686,0.000212,7]
[395070950,1764397890727,-1000.0,0.00021204,10]
[395070951,1764397890736,-1000.0,0.00021204,10]
[395070952,1764397890745,-1000.0,0.00021204,10]
[395070953,1764397890755,-13583.41826348,0.00021317,2]
[395070954,1764397890764,-500.0,0.00021369,2]
[395070955,1764397890774,-1168.599999,0.000214,2]
[395070956,1764397890783,-407.0,0.000215,2]
[395070957,1764397890792,-301.7,0.000215,7]
[395070958,1764397890801,-2000.0,0.000215,2]
[395070959,1764397890810,-788.33488717,0.000215,2]
[395070960,1764397890818,-200.0,0.000215,30]
[395070961,1764397890828,-296.99474658,0.000215,2]
[395070962,1764397890838,-382.30665091,0.000215,2]
[395070963,1764397890848,-12801.43586366,0.000215,2]
[395070964,1764397890858,-500.0,0.00021556,2]
[395070965,1764397890872,-500.0,0.00021587,2]
[395070966,1764397890881,-1000.0,0.000216,2]
[395070967,1764397890890,-600.0,0.00021613,2]
[395070968,1764397890900,-600.0,0.0002163,2]
[395070969,1764397890910,-500.0,0.00021643,2]
[395070970,1764397890919,-500.0,0.0002166,2]
[395070971,1764397890929,-382.30665091,0.00021661,9]
[395070972,1764397890938,-1460.0,0.00021676,2]
[395070973,1764397890947,-200.0,0.00021718,120]
[395070974,1764397890957,-600.0,0.00021757,2]
[395070975,1764397890966,-329.9251616,0.00021759,2]
[395070976,1764397890975,-164.9625808,0.00021759,2]
[395070977,1764397890985,-164.9625808,0.00021759,2]
[395070978,1764397890995,-164.9625808,0.00021759,2]
[395070979,1764397891005,-596.0005209,0.00021759,2]
[395070980,1764397891014,-596.0005209,0.00021759,2]
[395070981,1764397891023,-164.9625808,0.00021759,2]
[395070982,1764397891032,-164.9625808,0.00021759,2]
[395070983,1764397891041,-596.0005209,0.00021759,2]
[395070984,1764397891051,-167.9590712,0.00021759,2]
[395070985,1764397891059,-596.0005209,0.00021759,2]
[395070986,1764397891069,-382.30665091,0.00021823,17]